bitfinex-derivatives/quotes_BTCF0:USTF0_20250324
["timestamp","ask_amount","ask_price","bid_price","bid_amount"]
[1742824471417,0.13609606,87618.0,87617.0,0.1141308]
[1742824471619,0.13733607,87618.0,87617.0,0.2401708]
[1742824471809,0.13733607,87618.0,87617.0,0.4414708]
[1742824472215,0.13609606,87618.0,87617.0,0.4414708]
[1742824472419,0.13609606,87618.0,87617.0,0.4814708]
[1742824473209,0.13729607,87618.0,87617.0,0.4814708]
[1742824473823,0.00120001,87618.0,87617.0,0.4814708]
[1742824474215,0.00120001,87618.0,87617.0,0.4824708]
[1742824474914,0.00120001,87618.0,87617.0,0.4834708]
[1742824475120,8e-05,87620.0,87619.0,0.1141282]
[1742824475415,8e-05,87620.0,87619.0,0.1347282]
[1742824475618,0.00017119,87624.0,87623.0,0.114123]
[1742824475822,0.00145119,87624.0,87623.0,0.124803]
[1742824476018,0.00145119,87624.0,87623.0,0.337303]
[1742824476513,0.20005119,87624.0,87623.0,0.337303]
[1742824476907,0.10175119,87624.0,87623.0,0.337303]
[1742824477113,0.00017119,87624.0,87623.0,0.337303]
[1742824479321,0.0014112,87624.0,87623.0,0.337303]
[1742824480614,0.00017119,87624.0,87623.0,0.337303]
[1742824481426,0.00940973,87624.0,87623.0,0.337303]
[1742824481625,0.01060974,87624.0,87623.0,0.337303]
[1742824482518,0.13609606,87629.0,87628.0,0.1141164]
[1742824482717,0.06838148,87629.0,87628.0,0.7555164]
[1742824482923,0.06754148,87629.0,87628.0,0.9592164]
[1742824484730,0.06754148,87629.0,87628.0,1.0746164]
[1742824484937,0.06838148,87629.0,87628.0,1.0646164]
[1742824486726,0.00084,87629.0,87628.0,0.9505]
[1742824487231,0.1149551,87629.0,87628.0,0.9505]
[1742824487624,0.20784,87629.0,87628.0,0.9505]
[1742824488622,0.20784,87629.0,87628.0,0.6805]
[1742824489227,0.20784,87629.0,87628.0,0.0006]
[1742824489430,0.20784,87629.0,87619.0,0.1034]
[1742824489431,0.1141269,87620.0,87619.0,0.1034]
[1742824489631,0.1149669,87620.0,87619.0,0.114]
[1742824489837,0.0570688,87612.0,87599.0,0.36125662]
[1742824490132,0.0570688,87612.0,87607.0,0.47447119]
[1742824490133,0.1141399,87610.0,87607.0,0.47447119]
[1742824490331,0.099,87609.0,87608.0,0.1034]
[1742824490518,0.31618121,87609.0,87608.0,0.11404]
[1742824490723,0.31518121,87609.0,87608.0,0.21754]
[1742824491337,0.31418121,87609.0,87608.0,0.23164946]
[1742824491633,0.31418121,87609.0,87608.0,0.23564946]
[1742824491827,0.20004001,87609.0,87608.0,0.23564946]
[1742824492629,0.20896979,87609.0,87608.0,0.23864946]
[1742824492829,0.32311099,87609.0,87608.0,0.23864946]
[1742824493031,0.323111,87609.0,87608.0,0.13514946]
[1742824493230,0.323111,87609.0,87608.0,0.13450946]
[1742824493428,0.323111,87609.0,87608.0,0.02110946]
[1742824493632,0.0570748,87603.0,87599.0,0.00045662]
[1742824493828,0.0570748,87603.0,87589.0,0.26926006]
[1742824493829,0.1141659,87590.0,87589.0,0.26926006]
[1742824494120,0.1141699,87587.0,87579.0,0.1073]
[1742824494326,0.1111738,87584.0,87583.0,0.01455238]
[1742824494522,0.12174448,87584.0,87583.0,0.01515238]
[1742824494832,0.12274448,87584.0,87583.0,0.37595238]
[1742824495019,0.12274448,87584.0,87583.0,0.37655238]
[1742824495020,0.12370449,87584.0,87583.0,0.37655238]
[1742824495225,0.12370449,87584.0,87583.0,0.37595238]
[1742824496034,0.22410449,87584.0,87583.0,0.36185671]
[1742824496321,0.32360449,87584.0,87583.0,0.36185671]
[1742824496732,0.32660449,87584.0,87583.0,0.37588994]
[1742824496929,0.32660449,87584.0,87583.0,0.36185671]
[1742824497233,0.32660449,87584.0,87583.0,0.37564575]
[1742824497628,0.33352049,87584.0,87583.0,0.37564575]
[1742824497825,0.33552049,87584.0,87583.0,0.01484575]
[1742824498125,0.33252049,87584.0,87583.0,0.01424575]
[1742824498329,0.33652049,87584.0,87583.0,0.37504575]
[1742824498623,0.32760449,87584.0,87583.0,0.37564575]
[1742824500224,0.01553069,87584.0,87583.0,0.37564575]
[1742824500430,0.01553069,87584.0,87583.0,0.85522085]
[1742824500634,0.02348627,87584.0,87583.0,0.95104575]
[1742824500827,0.02348627,87584.0,87583.0,1.15714575]
[1742824501022,0.02348627,87584.0,87583.0,0.94714575]
[1742824501023,0.13766007,87584.0,87583.0,0.94714575]
[1742824501228,0.13766007,87584.0,87583.0,0.69714575]
[1742824501229,0.13862008,87584.0,87583.0,0.69714575]
[1742824501428,0.34792008,87584.0,87583.0,0.69714575]
[1742824501629,0.34892008,87584.0,87583.0,0.69714575]
[1742824502024,0.34592008,87584.0,87583.0,0.69714575]
[1742824502330,0.34601678,87584.0,87583.0,0.11645671]
[1742824502529,0.80531973,87584.0,87567.0,0.00045679]
[1742824502736,0.1141946,87568.0,87567.0,0.00045679]
[1742824502928,0.0099723,87568.0,87567.0,0.00105679]
[1742824503129,0.00901229,87568.0,87567.0,0.59458383]
[1742824503330,0.00901229,87568.0,87567.0,0.58045679]
[1742824503531,0.00901229,87568.0,87567.0,0.79945269]
[1742824503933,0.00901229,87568.0,87567.0,0.53945269]
[1742824504133,8e-05,87570.0,87568.0,0.1141943]
[1742824504334,0.00913752,87569.0,87568.0,0.3948743]
[1742824504534,0.00913752,87569.0,87568.0,0.38548]
[1742824504938,0.00913752,87569.0,87568.0,0.4996746]
[1742824505441,0.00913752,87569.0,87568.0,0.5006746]
[1742824505944,0.00913752,87569.0,87568.0,0.5016746]
[1742824506141,8e-05,87570.0,87569.0,0.1141933]
[1742824506339,0.00941965,87570.0,87569.0,0.4520933]
[1742824506743,0.00017119,87592.0,87581.0,0.1141774]
[1742824507039,0.0096255,87585.0,87584.0,0.1141733]
[1742824507245,0.0106255,87585.0,87584.0,0.3447733]
[1742824507439,0.01559544,87586.0,87584.0,0.3547733]
[1742824507747,0.00017119,87592.0,87591.0,0.1141646]
[1742824508046,0.00117119,87592.0,87591.0,0.8310046]
[1742824508246,0.00017119,87592.0,87591.0,0.8310046]
[1742824508430,0.0011312,87592.0,87591.0,0.8310046]
[1742824508940,0.0011312,87592.0,87591.0,0.8410046]
[1742824509539,0.0021312,87592.0,87591.0,0.8410046]
[1742824510644,0.00117119,87592.0,87591.0,0.8410046]
[1742824510849,0.00117119,87592.0,87591.0,0.7256046]
[1742824511149,0.00217119,87592.0,87591.0,0.8430046]
[1742824511548,0.00117119,87592.0,87591.0,0.8430046]
[1742824511945,0.00117119,87592.0,87591.0,0.8440046]
[1742824513335,0.00117119,87592.0,87591.0,0.60444]
[1742824513535,0.11533449,87592.0,87591.0,0.00364]
[1742824513736,0.11533449,87592.0,87591.0,0.003]
[1742824513942,0.22033449,87592.0,87591.0,0.003]
[1742824514137,0.1141659,87590.0,87589.0,0.1154]
[1742824514341,0.1121659,87590.0,87589.0,0.1154]
[1742824514642,0.12748483,87590.0,87589.0,0.1154]
[1742824514959,0.23248483,87590.0,87589.0,0.1154]
[1742824515139,0.33178483,87590.0,87589.0,0.1154]
[1742824515550,0.33178483,87590.0,87589.0,0.11604]
[1742824515852,0.44995376,87590.0,87589.0,0.00064]
[1742824516045,0.1141738,87584.0,87583.0,0.0001713]
[1742824516347,0.13045274,87584.0,87583.0,0.0007713]
[1742824516546,0.13045274,87584.0,87583.0,0.0001713]
[1742824517236,0.34535274,87584.0,87583.0,0.0001713]
[1742824517949,0.34735274,87584.0,87583.0,0.0001713]
[1742824518139,0.33203381,87584.0,87583.0,0.0001713]
[1742824518541,0.44721056,87584.0,87583.0,0.0001713]
[1742824519751,0.1141842,87576.0,87575.0,0.1004]
[1742824519948,0.11522421,87576.0,87575.0,0.1104]
[1742824520142,0.32682421,87576.0,87575.0,0.1104]
[1742824520338,0.33618824,87576.0,87575.0,0.1104]
[1742824520554,0.33618824,87576.0,87575.0,0.11108]
[1742824520750,0.33618824,87576.0,87575.0,0.21118]
[1742824521251,0.33618824,87576.0,87575.0,0.21218]
[1742824521639,0.33718824,87576.0,87575.0,0.21218]
[1742824522041,0.39270352,87576.0,87575.0,0.21218]
[1742824523256,0.39270352,87576.0,87575.0,0.11208]
[1742824524855,0.39270352,87576.0,87575.0,0.01168]
[1742824526750,0.39270352,87576.0,87575.0,0.12698]
[1742824527341,0.39270352,87576.0,87575.0,0.01168]
[1742824527547,0.5068907,87576.0,87575.0,0.01168]
[1742824527755,0.5068907,87576.0,87575.0,0.011]
[1742824529360,0.52076914,87576.0,87575.0,0.011]
[1742824529659,0.52076914,87576.0,87567.0,0.12952344]
[1742824529660,0.1141946,87568.0,87567.0,0.0001713]
[1742824529849,0.1142129,87554.0,87553.0,0.00171336]
[1742824530043,0.47597291,87554.0,87553.0,0.00235336]
[1742824530250,0.71663694,87554.0,87553.0,0.00235336]
[1742824530454,0.35583694,87554.0,87553.0,0.00235336]
[1742824530844,0.34647291,87554.0,87553.0,0.00235336]
[1742824531359,0.35147291,87554.0,87553.0,0.00235336]
[1742824531756,0.35447291,87554.0,87553.0,0.00235336]
[1742824533352,0.40998819,87554.0,87553.0,0.00235336]
[1742824535451,0.40998819,87554.0,87553.0,0.11835336]
[1742824535851,0.35447291,87554.0,87553.0,0.11835336]
[1742824539669,0.35447291,87554.0,87553.0,0.94744]
[1742824539670,0.00896001,87554.0,87553.0,0.94744]
[1742824539853,0.17032873,87564.0,87553.0,1.20724]
[1742824540047,0.0570804,87594.0,87563.0,0.3608]
[1742824540253,0.1141829,87577.0,87576.0,0.3608]
[1742824540455,0.1151029,87577.0,87576.0,0.75716]
[1742824540660,0.12420868,87577.0,87576.0,0.75716]
[1742824541862,0.12720868,87577.0,87576.0,0.75716]
[1742824543260,0.12720868,87577.0,87576.0,0.39636]
[1742824543462,0.114192,87570.0,87569.0,0.2175]
[1742824543666,0.11479201,87570.0,87569.0,0.21814]
[1742824544168,0.35273778,87570.0,87569.0,0.21814]
[1742824544361,0.00974578,87570.0,87569.0,0.68814]
[1742824544557,0.12333777,87570.0,87569.0,0.68814]
[1742824544867,0.12393778,87570.0,87569.0,0.68814]
[1742824545171,0.00974578,87570.0,87569.0,0.8023333]
[1742824545467,0.001,87577.0,87569.0,0.8567366]
[1742824545671,0.001,87577.0,87576.0,0.3608]
[1742824545859,0.1151829,87577.0,87576.0,0.8514]
[1742824546055,0.001,87577.0,87576.0,0.8514]
[1742824546259,0.001,87577.0,87576.0,0.9655842]
[1742824546457,8e-05,87578.0,87577.0,0.1141829]
[1742824546654,0.0001713,87585.0,87581.0,0.1141777]
[1742824546857,0.0001713,87585.0,87584.0,0.1141738]
[1742824547063,0.0001713,87585.0,87584.0,0.7002938]
[1742824547363,8e-05,87590.0,87589.0,0.1141673]
[1742824547558,0.1158,87609.0,87594.0,0.0570801]
[1742824547754,0.1158,87609.0,87600.0,0.3608]
[1742824547755,0.1141516,87601.0,87600.0,0.3608]
[1742824547958,0.1141516,87601.0,87600.0,0.8514]
[1742824548164,0.11475161,87601.0,87600.0,0.2306]
[1742824548971,0.34515161,87601.0,87600.0,0.2306]
[1742824549354,0.34715161,87601.0,87600.0,0.0006]
[1742824549570,0.34715161,87601.0,87592.0,0.0001713]
[1742824549571,0.114162,87593.0,87592.0,0.0001713]
[1742824549759,0.114882,87593.0,87592.0,0.0101713]
[1742824550070,0.114882,87593.0,87592.0,0.0107713]
[1742824550469,0.45424702,87593.0,87592.0,0.0107713]
[1742824550670,0.45424702,87593.0,87592.0,0.0101713]
[1742824551061,0.56854702,87593.0,87592.0,0.0101713]
[1742824551265,0.57054702,87593.0,87592.0,0.0101713]
[1742824551761,0.57054702,87593.0,87592.0,0.1183713]
[1742824551962,0.57254702,87593.0,87592.0,0.1183713]
[1742824553067,0.57254702,87593.0,87592.0,0.0101713]
[1742824554066,0.57254702,87593.0,87592.0,0.1294713]
[1742824554457,0.23304702,87593.0,87592.0,0.3600713]
[1742824555266,0.00472,87593.0,87592.0,0.5896346]
[1742824555470,0.004,87593.0,87592.0,0.5896346]
[1742824555765,0.1403133,87593.0,87592.0,0.5896346]
[1742824556073,0.1403133,87593.0,87592.0,0.4754713]
[1742824556375,0.1410333,87593.0,87592.0,0.4742346]
[1742824556566,0.2551953,87593.0,87592.0,0.2454713]
[1742824556765,0.2552753,87593.0,87592.0,0.2454713]
[1742824557175,0.4815753,87593.0,87592.0,0.1300713]
[1742824558168,0.49054248,87593.0,87592.0,0.1300713]
[1742824558566,0.4815753,87593.0,87592.0,0.1300713]
[1742824559173,0.345262,87593.0,87592.0,0.1300713]
[1742824560072,0.345262,87593.0,87592.0,0.0107713]
[1742824560279,0.460862,87593.0,87592.0,0.0107713]
[1742824560874,0.57502702,87593.0,87592.0,0.0101713]
[1742824561087,0.0570818,87592.0,87566.0,0.1141965]
[1742824561382,0.1141889,87573.0,87572.0,0.2348]
[1742824561679,0.1141889,87573.0,87572.0,0.74548]
[1742824561882,0.1141881,87573.0,87572.0,0.74548]
[1742824562366,0.1141881,87573.0,87572.0,0.86818]
[1742824562567,0.1149881,87573.0,87572.0,0.86818]
[1742824562767,0.1149881,87573.0,87572.0,0.87673516]
[1742824562965,0.0008,87573.0,87572.0,0.87673516]
[1742824563770,0.1199,87577.0,87572.0,0.87873516]
[1742824563973,0.1141863,87575.0,87572.0,0.87873516]
[1742824564170,0.1149063,87575.0,87572.0,0.87873516]
[1742824564369,0.1141881,87573.0,87572.0,0.00268]
[1742824564577,0.1141933,87569.0,87568.0,0.1193]
[1742824564778,0.1141946,87568.0,87567.0,0.00045679]
[1742824564972,0.3484146,87568.0,87567.0,0.00045679]
[1742824565887,0.3484146,87568.0,87567.0,0.22045679]
[1742824566181,0.3474146,87568.0,87567.0,0.00045679]
[1742824566973,0.3474146,87568.0,87567.0,0.00145679]
[1742824567374,0.3474146,87568.0,87567.0,0.00213679]
[1742824567576,0.00172,87568.0,87567.0,0.87293679]
[1742824567775,0.1151946,87568.0,87567.0,0.87293679]
[1742824567976,0.001,87568.0,87567.0,0.87293679]
[1742824568182,0.001,87568.0,87567.0,0.98713269]
[1742824568580,0.001,87568.0,87567.0,1.21573269]
[1742824568790,0.001,87568.0,87567.0,1.10153679]
[1742824569376,0.001,87568.0,87567.0,1.21573269]
[1742824569570,0.001,87568.0,87567.0,1.10153679]
[1742824570179,0.001,87568.0,87567.0,1.21573269]
[1742824570378,0.00176,87568.0,87567.0,1.21573269]
[1742824570883,0.001,87568.0,87567.0,1.21573269]
[1742824571084,0.001,87568.0,87567.0,1.10153679]
[1742824571294,0.2279946,87568.0,87567.0,0.59153679]
[1742824571585,0.5895146,87568.0,87567.0,0.00213679]
[1742824571792,0.1142155,87552.0,87550.0,0.3608]
[1742824571980,0.1151355,87552.0,87551.0,0.00137687]
[1742824572387,0.1151355,87552.0,87551.0,0.25137687]
[1742824572685,0.1151355,87552.0,87551.0,0.48487687]
[1742824572878,0.1241167,87552.0,87551.0,0.49359367]
[1742824573280,0.1241167,87552.0,87551.0,0.49659367]
[1742824573677,0.1241167,87552.0,87551.0,0.50159367]
[1742824574487,0.1241167,87552.0,87551.0,0.00937687]
[1742824574675,0.23833518,87552.0,87551.0,0.00937687]
[1742824575187,0.23933518,87552.0,87551.0,0.00637687]
[1742824576182,0.1142259,87544.0,87543.0,0.0001713]
[1742824576385,0.1142259,87544.0,87522.0,0.417927]
[1742824576386,0.1142364,87536.0,87529.0,0.4762]
[1742824576690,0.1142364,87536.0,87535.0,0.00137696]
[1742824576691,0.1151564,87536.0,87535.0,0.00137696]
[1742824576876,0.23835608,87536.0,87535.0,0.39212733]
[1742824577077,0.47705608,87536.0,87535.0,0.49567696]
[1742824577283,0.36281968,87536.0,87535.0,0.49567696]
[1742824577481,0.47705608,87536.0,87535.0,0.49567696]
[1742824578092,0.47705608,87536.0,87535.0,0.49767696]
[1742824578689,0.23635608,87536.0,87535.0,0.49767696]
[1742824578885,0.0085412,87536.0,87535.0,0.84030772]
[1742824579193,0.1221376,87536.0,87535.0,0.84030772]
[1742824579586,0.1221376,87536.0,87535.0,0.84330772]
[1742824579587,0.0079012,87536.0,87535.0,0.84330772]
[1742824579980,0.1153,87552.0,87551.0,0.1142168]
[1742824580294,0.1142129,87554.0,87553.0,0.0571068]
[1742824580491,0.1142129,87554.0,87553.0,0.3171068]
[1742824580692,0.1148529,87554.0,87553.0,0.2606]
[1742824581385,0.2301529,87554.0,87553.0,0.2606]
[1742824581995,0.2321529,87554.0,87553.0,0.2606]
[1742824582396,0.00264,87554.0,87553.0,0.6048142]
[1742824582691,0.00264,87554.0,87553.0,0.7202542]
[1742824582692,0.002,87554.0,87553.0,0.7202542]
[1742824583499,0.003,87554.0,87553.0,0.7202542]
[1742824583686,0.003,87554.0,87553.0,0.6048142]
[1742824583880,0.003,87554.0,87553.0,0.7202142]
[1742824584690,0.002,87554.0,87553.0,0.7202142]
[1742824585087,8e-05,87557.0,87556.0,0.1142103]
[1742824585292,0.0001713,87560.0,87559.0,0.1142064]
[1742824585499,0.2042327,87574.0,87563.0,0.1142012]
[1742824585689,0.13682449,87564.0,87563.0,0.8002012]
[1742824585888,0.13626449,87564.0,87563.0,0.8002012]
[1742824587085,8e-05,87564.0,87563.0,0.8002012]
[1742824587287,0.0001713,87572.0,87571.0,0.1141907]
[1742824587492,0.0008113,87572.0,87571.0,1.1309907]
[1742824588098,0.1150007,87572.0,87571.0,1.0168]
[1742824588286,0.0008113,87572.0,87571.0,1.0168]
[1742824588487,0.0008113,87572.0,87571.0,1.1309907]
[1742824588695,0.1150007,87572.0,87571.0,1.1309907]
[1742824589195,0.1160007,87572.0,87571.0,1.1309907]
[1742824589397,0.0018113,87572.0,87571.0,1.14419216]
[1742824589694,0.0021713,87572.0,87571.0,1.14419216]
[1742824590488,0.0021713,87572.0,87571.0,1.26499216]
[1742824590699,0.1163607,87572.0,87571.0,0.78540146]
[1742824590995,0.1170007,87572.0,87571.0,0.78540146]
[1742824591195,0.1170007,87572.0,87571.0,0.84540146]
[1742824591403,0.1160113,87572.0,87571.0,0.95959216]
[1742824591694,0.1160113,87572.0,87571.0,1.07789216]
[1742824591695,0.1153713,87572.0,87571.0,1.07789216]
[1742824591895,0.2302807,87572.0,87571.0,1.07789216]
[1742824592201,0.2302807,87572.0,87571.0,0.71709216]
[1742824592396,0.2302807,87572.0,87571.0,0.36380146]
[1742824592601,0.46935543,87572.0,87571.0,0.36380146]
[1742824593187,0.35516603,87572.0,87571.0,0.47799216]
[1742824593385,0.12517363,87572.0,87571.0,0.59779216]
[1742824593594,0.01197363,87572.0,87571.0,0.82479216]
[1742824593899,0.01125363,87572.0,87571.0,0.82479216]
[1742824594095,0.01125363,87572.0,87571.0,1.30329216]
[1742824594298,0.1141524,87601.0,87575.0,0.0570924]
[1742824594484,0.2444,87598.0,87578.0,0.4749816]
[1742824594690,0.2444,87598.0,87583.0,0.1141751]
[1742824594906,0.2444,87598.0,87583.0,0.9849751]
[1742824595290,0.2042327,87588.0,87586.0,0.1141712]
[1742824595489,0.2042327,87588.0,87586.0,0.2295712]
[1742824595688,0.2042327,87588.0,87586.0,0.7095712]
[1742824595898,0.2042327,87588.0,87587.0,0.1141699]
[1742824596096,0.2042327,87588.0,87587.0,0.6141699]
[1742824596398,0.2042327,87588.0,87587.0,0.8543699]
[1742824597599,0.16426969,87588.0,87587.0,0.8543699]
[1742824597800,0.27086054,87605.0,87598.0,0.1141555]
[1742824597992,0.27086054,87605.0,87598.0,1.4511555]
[1742824598699,0.1219,87604.0,87598.0,1.4511555]
[1742824598999,0.1219,87604.0,87603.0,0.114149]
[1742824599204,0.1219,87604.0,87603.0,0.634149]
[1742824599701,8e-05,87606.0,87605.0,0.1141464]
[1742824600004,0.0004,87608.0,87606.0,0.1141451]
[1742824600193,0.0004,87608.0,87607.0,0.4749438]
[1742824600394,0.0004,87608.0,87607.0,1.2474238]
[1742824601907,0.0004,87608.0,87607.0,1.26029829]
[1742824602096,0.0034,87608.0,87607.0,1.26029829]
[1742824602496,0.0001713,87616.0,87615.0,0.1141334]
[1742824602691,0.0008913,87616.0,87615.0,1.0909734]
[1742824603291,0.0004,87624.0,87623.0,0.114123]
[1742824603498,0.0004,87624.0,87623.0,1.091003]
[1742824603707,0.24,87632.0,87631.0,0.1141125]
[1742824604009,0.24076,87632.0,87631.0,1.1410325]
[1742824604399,0.24,87632.0,87631.0,1.1410325]
[1742824604604,0.2408,87632.0,87631.0,1.3695325]
[1742824604804,0.24,87632.0,87631.0,1.3695325]
[1742824605206,0.245,87632.0,87631.0,1.25642]
[1742824605402,0.3598312,87632.0,87631.0,1.25642]
[1742824605597,0.3598312,87632.0,87631.0,1.3705325]
[1742824605799,0.3598312,87632.0,87631.0,1.14412]
[1742824606199,0.3598312,87632.0,87631.0,1.14416]
[1742824606414,0.3598312,87632.0,87631.0,1.02796]
[1742824606707,0.3608312,87632.0,87631.0,0.75796]
[1742824608012,0.36991749,87632.0,87631.0,0.75796]
[1742824608218,0.25580629,87632.0,87631.0,0.8720725]
[1742824608510,0.36991749,87632.0,87631.0,0.8720725]
[1742824609599,0.36991749,87632.0,87631.0,0.880765]
[1742824610413,0.25580629,87632.0,87631.0,0.880765]
[1742824610609,0.36991749,87632.0,87631.0,0.880765]
[1742824611205,0.25580629,87632.0,87631.0,0.880765]
[1742824611717,0.24672,87632.0,87631.0,0.880765]
[1742824612704,0.24672,87632.0,87631.0,0.995265]
[1742824614017,0.2557252,87632.0,87631.0,0.880765]
[1742824615518,0.2557252,87632.0,87631.0,0.765365]
[1742824615703,0.2557252,87632.0,87631.0,0.880685]
[1742824615909,0.3698364,87632.0,87631.0,0.7665725]
[1742824616105,0.2557252,87632.0,87631.0,0.880685]
[1742824616307,0.24672,87632.0,87631.0,0.880685]
[1742824616616,0.24672,87632.0,87631.0,0.996385]
[1742824616804,0.24672,87632.0,87631.0,0.7665725]
[1742824616805,0.36983263,87632.0,87631.0,0.7665725]
[1742824618412,0.36983263,87632.0,87631.0,0.880685]
[1742824618802,0.36983263,87632.0,87631.0,0.8902725]
[1742824619006,0.36983263,87632.0,87631.0,0.7665725]
[1742824619712,0.25572143,87632.0,87631.0,0.910685]
[1742824619916,0.25572143,87632.0,87631.0,1.146385]
[1742824620906,0.24672,87632.0,87631.0,1.146385]
[1742824622019,0.25569515,87632.0,87631.0,1.146385]
[1742824623316,0.25497515,87632.0,87631.0,1.146385]
[1742824624123,0.13657515,87632.0,87631.0,1.146385]
[1742824624517,0.01497515,87632.0,87631.0,1.146385]
[1742824628210,0.25207515,87632.0,87631.0,1.146385]
[1742824633218,0.1295,87632.0,87631.0,1.146385]
[1742824633419,0.1176,87639.0,87638.0,0.1141034]
[1742824633714,0.2311,87639.0,87638.0,0.8221034]
[1742824633919,0.00057119,87640.0,87639.0,0.1141021]
[1742824634130,0.23827652,87667.0,87649.0,0.1140891]
[1742824634131,0.29530942,87667.0,87649.0,0.1140891]
[1742824634332,0.20442083,87650.0,87649.0,1.1208891]
[1742824634629,0.20442083,87650.0,87649.0,1.3528891]
[1742824634936,0.20442083,87650.0,87649.0,1.3659055]
[1742824636024,0.20442083,87650.0,87649.0,1.7267055]
[1742824636227,0.20370083,87650.0,87649.0,1.7267055]
[1742824637217,0.20442083,87650.0,87649.0,1.7267055]
[1742824637419,0.20370083,87650.0,87649.0,1.7267055]
[1742824637721,0.20446083,87650.0,87649.0,1.7267055]
[1742824637919,0.20370083,87650.0,87649.0,1.7267055]
[1742824638531,0.20442083,87650.0,87649.0,1.7267055]
[1742824638721,0.20370083,87650.0,87649.0,1.7267055]
[1742824638918,0.2311,87655.0,87654.0,0.1140826]
[1742824639117,0.2311,87655.0,87654.0,0.6148026]
[1742824639320,0.2311,87655.0,87654.0,0.8407026]
[1742824640321,0.0004,87656.0,87655.0,0.1140813]
[1742824640629,0.17081975,87666.0,87665.0,0.1140683]
[1742824640825,0.17153975,87666.0,87665.0,1.1108683]
[1742824641030,0.1174,87667.0,87665.0,1.4716683]
[1742824641215,0.05090179,87683.0,87672.0,0.0570294]
[1742824641416,0.30471811,87695.0,87694.0,0.1140306]
[1742824641615,0.30571811,87695.0,87694.0,1.0901106]
[1742824641828,0.1184,87719.0,87694.0,0.86176]
[1742824642128,0.37709227,87706.0,87705.0,0.4748163]
[1742824642325,0.37709227,87706.0,87705.0,1.1213363]
[1742824642730,0.37577227,87706.0,87705.0,1.1341734]
[1742824642925,0.37577227,87706.0,87705.0,1.3621734]
[1742824644126,0.37701228,87706.0,87705.0,1.3621734]
[1742824644727,0.49102728,87706.0,87705.0,1.2481571]
[1742824645134,0.49102728,87706.0,87705.0,1.3621734]
[1742824645436,0.61492728,87706.0,87705.0,1.3621734]
[1742824645833,0.50091228,87706.0,87705.0,1.0921734]
[1742824646524,0.73112728,87706.0,87705.0,0.9781571]
[1742824646829,0.84514521,87706.0,87705.0,0.62204]
[1742824647618,0.46937294,87706.0,87705.0,0.62204]
[1742824647821,0.83017294,87706.0,87705.0,0.26124]
[1742824648035,0.83017294,87706.0,87705.0,0.26]
[1742824648221,0.1140254,87698.0,87694.0,0.3608]
[1742824648430,0.1140293,87695.0,87694.0,0.43212]
[1742824648737,0.11526931,87695.0,87694.0,0.44499935]
[1742824650223,0.11526931,87695.0,87694.0,0.4534608]
[1742824650737,0.11526931,87695.0,87694.0,0.44399935]
[1742824651725,0.11526931,87695.0,87694.0,0.43112]
[1742824651726,0.11626931,87695.0,87694.0,0.43112]
[1742824652320,0.00224001,87695.0,87694.0,0.43112]
[1742824652534,0.00224001,87695.0,87694.0,0.5451506]
[1742824652939,0.11626931,87695.0,87694.0,0.79898745]
[1742824653132,0.00224001,87695.0,87694.0,1.04159288]
[1742824653436,8e-05,87697.0,87696.0,0.114028]
[1742824653740,0.1155,87706.0,87705.0,0.1140163]
[1742824653940,0.23011501,87706.0,87705.0,0.976]
[1742824654140,0.23011501,87706.0,87705.0,1.0912563]
[1742824654851,0.23011501,87706.0,87705.0,1.3274563]
[1742824655536,0.00060001,87706.0,87705.0,1.3274563]
[1742824655726,0.114015,87706.0,87705.0,0.86204]
[1742824655930,0.230835,87706.0,87705.0,0.74724]
[1742824656240,0.34485293,87706.0,87705.0,0.74724]
[1742824656427,0.34485293,87706.0,87705.0,0.47724]
[1742824656823,0.34785293,87706.0,87705.0,0.00124]
[1742824657028,0.1140267,87697.0,87696.0,0.2292279]
[1742824657336,0.11526671,87697.0,87696.0,0.3553479]
[1742824657539,0.1140267,87697.0,87696.0,0.3553479]
[1742824657735,0.1146667,87697.0,87696.0,0.3553479]
[1742824658039,0.3527667,87697.0,87696.0,0.3553479]
[1742824658230,0.24134001,87697.0,87696.0,0.3553479]
[1742824658425,0.12214001,87697.0,87696.0,0.8429479]
[1742824658628,0.002,87697.0,87696.0,0.8429479]
[1742824660224,0.00324001,87697.0,87696.0,0.8429479]
[1742824660536,0.002,87697.0,87696.0,0.8429479]
[1742824660734,0.00324001,87697.0,87696.0,0.8429479]
[1742824660934,0.002,87697.0,87696.0,0.8429479]
[1742824661929,0.00324001,87697.0,87696.0,0.8429479]
[1742824662138,0.002,87697.0,87696.0,0.8429479]
[1742824662336,0.00332,87697.0,87696.0,0.8429479]
[1742824662740,0.12172,87697.0,87696.0,0.8429479]
[1742824663037,0.23864001,87697.0,87696.0,0.8429479]
[1742824663541,0.23550007,87697.0,87696.0,0.8429479]
[1742824665839,0.00124001,87697.0,87696.0,0.8429479]
[1742824666143,8e-05,87699.0,87698.0,0.1140254]
[1742824666339,8e-05,87699.0,87698.0,1.0816654]
[1742824666532,0.1164,87703.0,87702.0,0.1140202]
[1742824666727,0.2297,87703.0,87702.0,0.8682202]
[1742824667532,0.1164,87703.0,87702.0,0.8682202]
[1742824667843,0.2273124,87708.0,87707.0,0.1140137]
[1742824668039,0.2273124,87708.0,87707.0,1.2290537]
[1742824668235,0.1133,87708.0,87707.0,1.2290537]
[1742824668441,0.1133,87710.0,87709.0,0.1140098]
[1742824668640,0.2273098,87710.0,87709.0,0.3956098]
[1742824668937,0.3487098,87710.0,87709.0,0.3956098]
[1742824669530,0.3487098,87710.0,87709.0,0.5105098]
[1742824669747,0.2347,87710.0,87709.0,0.5105098]
[1742824669933,0.2347,87710.0,87709.0,0.7705098]
[1742824670438,0.3487098,87710.0,87709.0,0.3956098]
[1742824671041,0.3487098,87710.0,87709.0,0.5105098]
[1742824671235,0.3497098,87710.0,87709.0,0.5105098]
[1742824672032,0.3497098,87710.0,87709.0,0.3965]
[1742824672638,0.3497098,87710.0,87709.0,0.5105111]
[1742824674246,0.2357,87710.0,87709.0,0.5105111]
[1742824674846,0.3497098,87710.0,87709.0,0.5105111]
[1742824675348,0.3497098,87710.0,87709.0,0.71311289]
[1742824677940,0.46372253,87710.0,87709.0,0.21420179]
[1742824678139,0.46372253,87710.0,87709.0,0.0116]
[1742824679539,0.46372253,87710.0,87709.0,0.1284]
[1742824679935,0.46372253,87710.0,87709.0,0.2424111]
[1742824680137,0.3497098,87710.0,87709.0,0.2424111]
[1742824681136,0.001,87710.0,87709.0,0.4924111]
[1742824681338,0.2396,87710.0,87709.0,0.4924111]
[1742824681648,0.2396,87710.0,87709.0,0.2424111]
[1742824681831,0.3536098,87710.0,87709.0,0.2424111]
[1742824682032,0.2396,87710.0,87709.0,0.2424111]